{"text_format":"1","workbook":"xlsx","n_sheets":3,"sheets":["TGCF 2009","Prerrequisitos","Cómo voy"],"not_rendered":{"charts":0,"images":0,"macros":1,"external_links":0,"defined_names":0,"comments":0,"pivot_tables":0},"unopened":[],"bounds":{"document_bytes":16777216,"sheet_cells":100000,"rows_first":2000,"rows_last":500,"rows_between":2000,"halvings":0,"cell_chars":16384,"cell_head_chars":4096},"cells_cut":0,"cells_raw":0,"read":"whole","date_system":"1900"}

{"sheet":"TGCF 2009","index":0,"n_rows":42,"n_cols":29,"rows_kept":42,"cut":false,"hidden":false,"merged":[[40,26,40,29],[41,26,41,29],[12,2,12,3],[17,2,17,3],[22,2,22,3],[27,2,27,3],[32,2,32,3],[37,2,37,3],[38,2,39,4],[12,6,12,7],[37,6,37,7],[38,6,39,8],[17,6,17,7],[22,6,22,7],[27,6,27,7],[38,12,39,14],[38,16,39,18],[37,12,37,13],[37,16,37,17],[32,12,32,13],[32,16,32,17],[33,16,34,18],[39,26,39,29],[12,26,12,27],[17,26,17,27],[32,26,32,27],[23,26,24,28],[26,26,27,28],[25,26,25,27],[33,26,33,27],[34,26,35,28],[18,26,19,28],[13,26,14,28],[9,1,9,29],[32,20,32,21],[37,20,37,21],[12,20,12,21],[22,26,22,27],[27,12,27,13],[27,16,27,17],[22,12,22,13],[22,16,22,17],[12,12,12,13],[12,16,12,17],[17,12,17,13],[17,16,17,17],[32,6,32,7],[18,2,19,4],[18,6,19,8],[18,12,19,14],[18,16,19,18],[38,20,39,22],[23,2,24,4],[23,6,24,8],[23,12,24,14],[23,16,24,18],[28,2,29,4],[28,6,29,8],[28,12,29,14],[28,16,29,18],[33,2,34,4],[33,6,34,8],[33,12,34,14],[33,20,34,22],[13,2,14,4],[13,6,14,8],[13,12,14,14],[13,16,14,18],[13,20,14,22]]}
[]
[]
[]
[]
[]
[]
[]
[]
[]
[null,"Lleva el control de tu avance curricular"]
[]
[]
[null,null,"CBAS-1153",null,{"$f":"MAX(C16:E16)","v":0},null,"CBAS-1123",null,{"$f":"MAX(G16:I16)","v":0},null,null,null,"TPCO-1013",null,{"$f":"MAX(M16:O16)","v":0},null,"TPCO-1003",null,{"$f":"MAX(Q16:S16)","v":0},null,"TGCF-1033",null,{"$f":"MAX(U16:W16)","v":0},null,null,null,"TGCF-1003",null,{"$f":"MAX(AA16:AC16)","v":0}]
[null,null,"Fundamentación Matemática ",null,null,null,"Aplicaciones Matemáticas ",null,null,null,null,null,"Control de Inventarios ",null,null,null,"Aplicaciones Tributarias ",null,null,null,"Matemática Financiera Aplicada ",null,null,null,null,null,"Auditoría Financiera "]
[]
[]
[]
[null,null,"CHUM-1003",null,{"$f":"MAX(C21:E21)","v":0},null,"CHUM-1013",null,{"$f":"MAX(G21:I21)","v":0},null,null,null,"TPCO-1113",null,{"$f":"MAX(M21:O21)","v":0},null,"TPCO-1123",null,{"$f":"MAX(Q21:S21)","v":0},null,null,null,null,null,null,null,"CBAS-1133",null,{"$f":"MAX(AA21:AC21)","v":0}]
[null,null,"Desarrollo de Pensamiento ",null,null,null,"Ética y Cultura Ciudadana ",null,null,null,null,null,"Registros Sector Público ",null,null,null,"Registros Sector Solidario ",null,null,null,null,null,null,null,null,null,"Cálculo Aplicado"]
[]
[]
[]
[null,null,"CBAS-1143",null,{"$f":"MAX(C26:E26)","v":0},null,"DDIN-1003",null,{"$f":"MAX(G26:I26)","v":0},null,null,null,"TGCF-1043",null,{"$f":"MAX(M26:O26)","v":0},null,"TGCF-1063",null,{"$f":"MAX(Q26:S26)","v":0}]
[null,null,"Ciencias Experimentales ",null,null,null,"Ideas para Emprendimiento ",null,null,null,null,null,"Normas Legales ",null,null,null,"Presupuesto de Mercados "]
[]
[null,null,null,null,null,null,null,null,null,null,null,null,null,null,null,null,null,null,null,null,null,null,null,null,null,null,"TPCO-1103",null,{"$f":"MAX(AA29:AC29)","v":0}]
[null,null,null,null,null,null,null,null,null,null,null,null,null,null,null,null,null,null,null,null,null,null,null,null,null,null,"Registro de Operaciones Contables"]
[null,null,"CHUM-1123",null,{"$f":"MAX(C31:E31)","v":0},null,"CHUM-1133",null,{"$f":"MAX(G31:I31)","v":0},null,null,null,"TPCO-1133",null,{"$f":"MAX(M31:O31)","v":0},null,"TPCO-1143",null,{"$f":"MAX(Q31:S31)","v":0}]
[null,null,"Inglés Básico ",null,null,null,"Inglés Básico Técnico ",null,null,null,null,null,"Salarios y Compensaciones ",null,null,null,"Sistemas de Costos "]
[]
[]
[]
[null,null,"CHUM-1103",null,{"$f":"MAX(C36:E36)","v":0},null,"CHUM-1113",null,{"$f":"MAX(G36:I36)","v":0},null,null,null,"CBAS-1113",null,{"$f":"MAX(M36:O36)","v":0},null,"TGCF-1023",null,{"$f":"MAX(Q36:S36)","v":0},null,"TGCF-1073",null,{"$f":"MAX(U36:W36)","v":0}]
[null,null,"Comprensión en Inglés ",null,null,null,"Escritura en Inglés ",null,null,null,null,null,"Aplicaciones Estadísticas ",null,null,null,"Informes Contables ",null,null,null,"Procedimientos de Control ",null,null,null,null,null,"CBAS-1103",null,{"$f":"MAX(AA37:AC37)","v":0}]
[null,null,null,null,null,null,null,null,null,null,null,null,null,null,null,null,null,null,null,null,null,null,null,null,null,null,"Cátedra Desarrollo Universitario"]
[]
[]
[null,null,"DDIN-1023",null,{"$f":"MAX(C41:E41)","v":0},null,"DDIN-1013",null,{"$f":"MAX(G41:I41)","v":0},null,null,null,"TGCF-1083",null,{"$f":"MAX(M41:O41)","v":0},null,"TGCF-1013",null,{"$f":"MAX(Q41:S41)","v":0},null,"TGCF-1053",null,{"$f":"MAX(U40:W40)","v":0}]
[null,null,"Investigación Exploratoria ",null,null,null,"Investigación Descriptiva",null,null,null,null,null,"Procesos Administrativos ",null,null,null,"Estados Financieros",null,null,null,"Práctica Laboral Tecnólogo"]
[null,null,null,null,null,null,null,null,null,null,null,null,null,null,null,null,null,null,null,null,null,null,null,null,null,4,"Módulo aprobado"]
[null,null,null,null,null,null,null,null,null,null,null,null,null,null,null,null,null,null,null,null,null,null,null,null,null,2,"Módulo reprobado"]
[null,null,null,null,null,null,null,null,null,null,null,null,null,null,null,null,null,null,null,null,null,null,null,null,null,0,"Módulo pendiente por cursar"]

{"sheet":"Prerrequisitos","index":1,"n_rows":41,"n_cols":24,"rows_kept":41,"cut":false,"hidden":false,"merged":[[22,23,25,28],[27,23,30,28],[38,6,39,8],[38,12,39,14],[27,6,27,7],[32,6,32,7],[32,23,35,28],[37,23,40,28],[37,6,37,7],[32,12,32,13],[37,12,37,13],[28,6,29,8],[28,12,29,14],[33,6,34,8],[33,12,34,14],[9,1,9,29],[12,12,12,13],[27,12,27,13],[12,6,12,7],[22,12,22,13],[17,12,17,13],[22,6,22,7],[17,6,17,7],[12,23,15,28],[17,23,20,28],[18,6,19,8],[13,12,14,14],[13,6,14,8],[18,12,19,14],[23,6,24,8],[23,12,24,14]]}
[]
[]
[]
[]
[]
[]
[]
[]
[]
[null,"Lleva el control de tu avance curricular"]
[]
[]
[null,null,null,null,null,null,"CBAS-1153",null,{"$f":"MAX(G16:I16)","v":0},null,null,null,"CBAS-1123",null,{"$f":"MAX(M16:O16)","v":0},null,null,null,null,null,null,null,null,{"$f":"IF(OR(AND(ISNUMBER(G16),G16>=3),AND(ISNUMBER(H16),H16>=3),AND(ISNUMBER(I16),I16>=3)),\"Puede cursar Aplicaciones Matemáticas\",\"Tiene pendiente por aprobar Fundamentación Matemática.\")","v":"Tiene pendiente por aprobar Fundamentación Matemática."}]
[null,null,null,null,null,null,"Fundamentación Matemática",null,null,null,null,null,"Aplicaciones Matemáticas "]
[]
[null,null,null,null,null,null,{"$f":"IF('TGCF 2009'!C16=\"\",\"\",'TGCF 2009'!C16)","v":""},{"$f":"IF('TGCF 2009'!D16=\"\",\"\",'TGCF 2009'!D16)","v":""},{"$f":"IF('TGCF 2009'!E16=\"\",\"\",'TGCF 2009'!E16)","v":""},null,null,null,{"$f":"IF('TGCF 2009'!G16=\"\",\"\",'TGCF 2009'!G16)","v":""},{"$f":"IF('TGCF 2009'!H16=\"\",\"\",'TGCF 2009'!H16)","v":""},{"$f":"IF('TGCF 2009'!I16=\"\",\"\",'TGCF 2009'!I16)","v":""}]
[]
[null,null,null,null,null,null,"CHUM-1123",null,{"$f":"MAX(G21:I21)","v":0},null,null,null,"CHUM-1103",null,{"$f":"MAX(M21:O21)","v":0},null,null,null,null,null,null,null,null,{"$f":"IF(AND(MAX('TGCF 2009'!$C$31:$E$31)<3,MAX('TGCF 2009'!$G$31:$I$31)<3),\"Tiene pendiente por cursar Inglés Básico e Inglés Básico Técnico\",IF(AND(MAX('TGCF 2009'!$C$31:$E$31)<3,MAX('TGCF 2009'!$G$31:$I$31)>=3),\"Tiene pendiente por cursar Inglés Básico\",IF(AND(MAX('TGCF 2009'!$C$31:$E$31)>=3,MAX('TGCF 2009'!$G$31:$I$31)<3),\"Tiene pendiente por cursar Inglés Básico Técnico\",\"Puede cursar Comprensión en Inglés\")))","v":"Tiene pendiente por cursar Inglés Básico e Inglés Básico Técnico"}]
[null,null,null,null,null,null,"Inglés Básico ",null,null,null,null,null,"Comprensión en Inglés "]
[]
[null,null,null,null,null,null,{"$f":"IF('TGCF 2009'!C31=\"\",\"\",'TGCF 2009'!C31)","v":""},{"$f":"IF('TGCF 2009'!D31=\"\",\"\",'TGCF 2009'!D31)","v":""},{"$f":"IF('TGCF 2009'!E31=\"\",\"\",'TGCF 2009'!E31)","v":""},null,null,null,{"$f":"IF('TGCF 2009'!C36=\"\",\"\",'TGCF 2009'!C36)","v":""},{"$f":"IF('TGCF 2009'!D36=\"\",\"\",'TGCF 2009'!D36)","v":""},{"$f":"IF('TGCF 2009'!E36=\"\",\"\",'TGCF 2009'!E36)","v":""}]
[]
[null,null,null,null,null,null,"CHUM-1133",null,{"$f":"MAX(G26:I26)","v":0},null,null,null,"CHUM-1113",null,{"$f":"MAX(M26:O26)","v":0},null,null,null,null,null,null,null,null,{"$f":"IF(AND(MAX('TGCF 2009'!$C$31:$E$31)<3,MAX('TGCF 2009'!$G$31:$I$31)<3),\"Tiene pendiente por cursar Inglés Básico e Inglés Básico Técnico\",IF(AND(MAX('TGCF 2009'!$C$31:$E$31)<3,MAX('TGCF 2009'!$G$31:$I$31)>=3),\"Tiene pendiente por cursar Inglés Básico\",IF(AND(MAX('TGCF 2009'!$C$31:$E$31)>=3,MAX('TGCF 2009'!$G$31:$I$31)<3),\"Tiene pendiente por cursar Inglés Básico Técnico\",\"Puede cursar Escritura en Inglés\")))","v":"Tiene pendiente por cursar Inglés Básico e Inglés Básico Técnico"}]
[null,null,null,null,null,null,"Inglés Básico Técnico ",null,null,null,null,null,"Escritura en Inglés "]
[]
[null,null,null,null,null,null,{"$f":"IF('TGCF 2009'!G31=\"\",\"\",'TGCF 2009'!G31)","v":""},{"$f":"IF('TGCF 2009'!H31=\"\",\"\",'TGCF 2009'!H31)","v":""},{"$f":"IF('TGCF 2009'!I31=\"\",\"\",'TGCF 2009'!I31)","v":""},null,null,null,{"$f":"IF('TGCF 2009'!G36=\"\",\"\",'TGCF 2009'!G36)","v":""},{"$f":"IF('TGCF 2009'!H36=\"\",\"\",'TGCF 2009'!H36)","v":""},{"$f":"IF('TGCF 2009'!I36=\"\",\"\",'TGCF 2009'!I36)","v":""}]
[]
[null,null,null,null,null,null,"DDIN-1023",null,{"$f":"MAX(G31:I31)","v":0},null,null,null,"DDIN-1013",null,{"$f":"MAX(M31:O31)","v":0},null,null,null,null,null,null,null,null,{"$f":"IF(OR(AND(ISNUMBER(G31),G31>=3),AND(ISNUMBER(H31),H31>=3),AND(ISNUMBER(I31),I31>=3)),\"Puede cursar Investigación Descriptiva\",\"Tiene pendiente por aprobar Investigación Exploratoria.\")","v":"Tiene pendiente por aprobar Investigación Exploratoria."}]
[null,null,null,null,null,null,"Investigación Exploratoria ",null,null,null,null,null,"Investigación Descriptiva"]
[]
[null,null,null,null,null,null,{"$f":"IF('TGCF 2009'!C41=\"\",\"\",'TGCF 2009'!C41)","v":""},{"$f":"IF('TGCF 2009'!D41=\"\",\"\",'TGCF 2009'!D41)","v":""},{"$f":"IF('TGCF 2009'!E41=\"\",\"\",'TGCF 2009'!E41)","v":""},null,null,null,{"$f":"IF('TGCF 2009'!G41=\"\",\"\",'TGCF 2009'!G41)","v":""},{"$f":"IF('TGCF 2009'!H41=\"\",\"\",'TGCF 2009'!H41)","v":""},{"$f":"IF('TGCF 2009'!I41=\"\",\"\",'TGCF 2009'!I41)","v":""}]
[]
[null,null,null,null,null,null,"CBAS-1153",null,{"$f":"MAX(G36:I36)","v":0},null,null,null,"TCFV-1033",null,{"$f":"MAX(M36:O36)","v":0},null,null,null,null,null,null,null,null,{"$f":"IF(OR(AND(ISNUMBER(G36),G36>=3),AND(ISNUMBER(H36),H36>=3),AND(ISNUMBER(I36),I36>=3)),\"Puede cursar Matemática Financiera Aplicada\",\"Tiene pendiente por aprobar Fundamentación Matemática.\")","v":"Tiene pendiente por aprobar Fundamentación Matemática."}]
[null,null,null,null,null,null,"Fundamentación Matemática",null,null,null,null,null,"Matemática Financiera Aplicada "]
[]
[null,null,null,null,null,null,{"$f":"IF('TGCF 2009'!C16=\"\",\"\",'TGCF 2009'!C16)","v":""},{"$f":"IF('TGCF 2009'!D16=\"\",\"\",'TGCF 2009'!D16)","v":""},{"$f":"IF('TGCF 2009'!E16=\"\",\"\",'TGCF 2009'!E16)","v":""},null,null,null,{"$f":"IF('TGCF 2009'!U16=\"\",\"\",'TGCF 2009'!U16)","v":""},{"$f":"IF('TGCF 2009'!V16=\"\",\"\",'TGCF 2009'!V16)","v":""},{"$f":"IF('TGCF 2009'!W16=\"\",\"\",'TGCF 2009'!W16)","v":""}]
[]
[null,null,null,null,null,null,"CBAS-1153",null,{"$f":"MAX(G41:I41)","v":0},null,null,null,"CBAS-1133",null,{"$f":"MAX(M41:O41)","v":0},null,null,null,null,null,null,null,null,{"$f":"IF(OR(AND(ISNUMBER(G41),G41>=3),AND(ISNUMBER(H41),H41>=3),AND(ISNUMBER(I41),I41>=3)),\"Puede cursar Cálculo Aplicado\",\"Tiene pendiente por aprobar Fundamentación Matemática.\")","v":"Tiene pendiente por aprobar Fundamentación Matemática."}]
[null,null,null,null,null,null,"Fundamentación Matemática",null,null,null,null,null,"Cálculo Aplicado"]
[]
[null,null,null,null,null,null,{"$f":"IF('TGCF 2009'!C16=\"\",\"\",'TGCF 2009'!C16)","v":""},{"$f":"IF('TGCF 2009'!D16=\"\",\"\",'TGCF 2009'!D16)","v":""},{"$f":"IF('TGCF 2009'!E16=\"\",\"\",'TGCF 2009'!E16)","v":""},null,null,null,{"$f":"IF('TGCF 2009'!AA21=\"\",\"\",'TGCF 2009'!AA21)","v":""},{"$f":"IF('TGCF 2009'!AB21=\"\",\"\",'TGCF 2009'!AB21)","v":""},{"$f":"IF('TGCF 2009'!AC21=\"\",\"\",'TGCF 2009'!AC21)","v":""}]

{"sheet":"Cómo voy","index":2,"n_rows":41,"n_cols":23,"rows_kept":41,"cut":false,"hidden":false,"merged":[[9,1,9,24],[35,19,35,20],[29,7,29,8],[13,15,13,18],[12,7,12,8],[13,19,13,20],[12,3,12,6],[29,3,29,6],[21,9,22,9],[21,10,22,10],[35,15,35,18],[23,15,23,18],[21,2,22,2],[21,3,22,5],[21,7,22,7],[21,6,22,6],[40,3,40,7],[39,3,39,7],[38,3,38,7],[23,9,24,9],[23,10,24,10],[31,19,31,20],[23,2,24,2],[23,3,24,5],[23,6,24,6],[23,7,24,7],[26,15,26,18],[26,19,26,20],[30,15,30,18],[31,15,31,18],[28,15,28,18],[29,15,29,18]]}
[]
[]
[]
[]
[]
[]
[]
[]
[]
[null,"Lleva el control de tu avance curricular"]
[]
[]
[null,null,"Código","Módulo",null,null,null,"Prerrequisitos",null,"Créditos ","Estado"]
[null,null,"CBAS-1153","Fundamentación Matemática ",null,null,null,null,null,0,{"$f":"MAX('TGCF 2009'!$C$16:$E$16)","v":0},null,null,null,"Código","Módulo",null,null,null,"Prerrequisitos",null,"Créditos ","Estado"]
[null,null,"CBAS-1143","Ciencias Experimentales ",null,null,null,null,null,4,{"$f":"MAX('TGCF 2009'!$C$26:$E$26)","v":0},null,null,null,"TPCO-1143","Sistemas de Costos ",null,null,null,null,null,4,{"$f":"MAX('TGCF 2009'!$Q$31:$S$31)","v":0}]
[null,null,"CBAS-1123","Aplicaciones Matemáticas ",null,null,null,"CBAS-1153",{"$f":"MAX('TGCF 2009'!$C$16:$E$16)","v":0},4,{"$f":"MAX('TGCF 2009'!$G$16:$I$16)","v":0},null,null,null,"TPCO-1003","Aplicaciones Tributarias ",null,null,null,null,null,4,{"$f":"MAX('TGCF 2009'!$Q$16:$S$16)","v":0}]
[null,null,"CHUM-1013","Ética y Cultura Ciudadana ",null,null,null,null,null,4,{"$f":"MAX('TGCF 2009'!$G$21:$I$21)","v":0},null,null,null,"TPCO-1013","Control de Inventarios ",null,null,null,null,null,4,{"$f":"MAX('TGCF 2009'!$M$16:$O$16)","v":0}]
[null,null,"DDIN-1003","Ideas para Emprendimiento ",null,null,null,null,null,2,{"$f":"MAX('TGCF 2009'!$G$26:$I$26)","v":0},null,null,null,"TPCO-1133","Salarios y Compensaciones ",null,null,null,null,null,4,{"$f":"MAX('TGCF 2009'!$M$31:$O$31)","v":0}]
[null,null,"CHUM-1003","Desarrollo de Pensamiento ",null,null,null,null,null,2,{"$f":"MAX('TGCF 2009'!$C$21:$E$21)","v":0},null,null,null,"TPCO-1113","Registros Sector Público ",null,null,null,null,null,4,{"$f":"MAX('TGCF 2009'!$M$21:$O$21)","v":0}]
[null,null,"CHUM-1123","Inglés Básico ",null,null,null,null,null,2,{"$f":"MAX('TGCF 2009'!$C$31:$E$31)","v":0},null,null,null,"TPCO-1123","Registros Sector Solidario ",null,null,null,null,null,4,{"$f":"MAX('TGCF 2009'!$Q$21:$S$21)","v":0}]
[null,null,"CHUM-1133","Inglés Básico Técnico ",null,null,null,null,null,2,{"$f":"MAX('TGCF 2009'!$G$31:$I$31)","v":0},null,null,null,"TGCF-1043","Normas Legales ",null,null,null,null,null,4,{"$f":"MAX('TGCF 2009'!$M$26:$O$26)","v":0}]
[null,null,"CHUM-1103","Comprensión en Inglés ",null,null,null,"CHUM-1123 y CHUM-1133",{"$f":"MAX('TGCF 2009'!$C$31:$E$31)","v":0},2,{"$f":"MAX('TGCF 2009'!$C$36:$E$36)","v":0},null,null,null,"TGCF-1063","Presupuesto de Mercados ",null,null,null,null,null,4,{"$f":"MAX('TGCF 2009'!$Q$26:$S$26)","v":0}]
[null,null,null,null,null,null,null,null,{"$f":"MAX('TGCF 2009'!$G$31:$I$31)","v":0},null,null,null,null,null,"TGCF-1033","Matemática Financiera Aplicada ",null,null,null,"CBAS-1153",{"$f":"MAX('TGCF 2009'!$C$16:$E$16)","v":0},3,{"$f":"MAX('TGCF 2009'!$U$16:$W$16)","v":0}]
[null,null,"CHUM-1113","Escritura en Inglés ",null,null,null,"CHUM-1123 y CHUM-1133",{"$f":"MAX('TGCF 2009'!$C$31:$E$31)","v":0},2,{"$f":"MAX('TGCF 2009'!$G$36:$I$36)","v":0}]
[null,null,null,null,null,null,null,null,{"$f":"MAX('TGCF 2009'!$G$31:$I$31)","v":0}]
[null,null,"DDIN-1023","Investigación Exploratoria ",null,null,null,null,null,2,{"$f":"MAX('TGCF 2009'!$C$41:$E$41)","v":0}]
[null,null,"DDIN-1013","Investigación Descriptiva ",null,null,null,"DDIN-1023",{"$f":"MAX('TGCF 2009'!C41:E41)","v":0},2,{"$f":"MAX('TGCF 2009'!$G$41:$I$41)","v":0},null,null,null,"Código","Módulo",null,null,null,"Prerrequisitos",null,"Créditos ","Estado"]
[null,null,null,null,null,null,null,null,null,null,null,null,null,null,"TPCO-1103","Registro de Operaciones Contables",null,null,null,null,null,4,{"$f":"MAX('TGCF 2009'!$AA$29:$AC$29)","v":0}]
[]
[null,null,"Código","Módulo",null,null,null,"Prerrequisitos",null,"Créditos ","Estado"]
[null,null,"TGCF-1023","Informes Contables ",null,null,null,null,null,4,{"$f":"MAX('TGCF 2009'!Q36:S36)","v":0}]
[null,null,"CBAS-1113","Aplicaciones Estadísticas ",null,null,null,null,null,4,{"$f":"MAX('TGCF 2009'!M36:O36)","v":0},null,null,null,"Código","Módulo",null,null,null,"Prerrequisitos",null,"Créditos ","Estado"]
[null,null,"TGCF-1083","Procesos Administrativos ",null,null,null,null,null,4,{"$f":"MAX('TGCF 2009'!M41:O41)","v":0},null,null,null,"CBAS-1103","Catedra Desarrollo Universitario",null,null,null,null,null,0,{"$f":"MAX('TGCF 2009'!AA37:AC37)","v":0}]
[null,null,"TGCF-1073","Procedimientos de Control ",null,null,null,null,null,4,{"$f":"MAX('TGCF 2009'!U36:W36)","v":0}]
[null,null,"TGCF-1013","Estados Financieros",null,null,null,null,null,4,{"$f":"MAX('TGCF 2009'!$Q$41:$S$41)","v":0}]
[null,null,"TGCF-1053","Práctica Laboral Tecnólogo",null,null,null,null,null,9,{"$f":"MAX('TGCF 2009'!$U$41:$W$41)","v":0},null,null,null,"Código","Módulo",null,null,null,"Prerrequisitos",null,"Créditos ","Estado"]
[null,null,null,null,null,null,null,null,null,null,null,null,null,null,"TGCF-1003","Auditoría Financiera ",null,null,null,null,null,3,{"$f":"MAX('TGCF 2009'!AA16:AC16)","v":0}]
[null,null,null,null,null,null,null,null,null,null,null,null,null,null,"CBAS-1133","Cálculo Aplicado",null,null,null,"CBAS-1153",{"$f":"MAX('TGCF 2009'!$C$16:$E$16)","v":0},3,{"$f":"MAX('TGCF 2009'!AA21:AC21)","v":0}]
[null,null,4,"Módulo / Prerrequisito aprobado"]
[null,null,2,"Módulo / Prerrequisito reprobado"]
[null,null,0,"Módulo / Prerrequisito pendiente por cursar"]